fUSD/lending_fUSD_20260628
["ID","MTS","AMOUNT","RATE_DAILY","PERIOD"]
[426550785,1782581450000,-162.0,0.00031649,30]
[426550777,1782581450000,-969.0,0.000315,7]
[426550757,1782581450000,-5833.0,0.00030295,10]
[426550776,1782581450000,-150.0,0.00031192,30]
[426550778,1782581450000,-500.0,0.00031507,3]
[426550768,1782581450000,-162.0,0.00030649,30]
[426550755,1782581450000,-1357.77890919,0.00030228,2]
[426550743,1782581450000,-250.423568,0.00029699,2]
[426550750,1782581450000,-500.0,0.00030098,7]
[426550779,1782581450000,-8750.0,0.00031507,10]
[426550726,1782581450000,-1357.77890919,0.00029145,2]
[426550727,1782581450000,-250.423567,0.0002937,2]
[426550738,1782581450000,-155.0,0.00029649,30]
[426550731,1782581450000,-156.0,0.00029648,30]
[426550729,1782581450000,-1357.77890919,0.00029437,2]
[426550739,1782581450000,-162.0,0.00029649,30]
[426550740,1782581450000,-160.0,0.00029649,30]
[426550741,1782581450000,-200.0,0.00029657,2]
[426550736,1782581450000,-161.0,0.00029648,30]
[426550737,1782581450000,-157.0,0.00029649,30]
[426550730,1782581450000,-1357.77890919,0.00029524,2]
[426550732,1782581450000,-263.0,0.00029648,30]
[426550733,1782581450000,-173.0,0.00029648,30]
[426550728,1782581450000,-1230.0,0.0002941,2]
[426550734,1782581450000,-154.0,0.00029648,30]
[426550735,1782581450000,-157.0,0.00029648,30]
[426550753,1782581450000,-218.64851979,0.00030136,7]
[426550742,1782581450000,-153.0,0.00029661,30]
[426550745,1782581450000,-1628.995,0.0002984,24]
[426550744,1782581450000,-1357.77890919,0.00029788,2]
[426550754,1782581450000,-168.47917504,0.00030137,2]
[426550746,1782581450000,-151.266,0.0002984,24]
[426550747,1782581450000,-200.0,0.000299,10]
[426550751,1782581450000,-560.80780925,0.00030099,7]
[426550752,1782581450000,-1357.77890919,0.00030135,2]
[426550749,1782581450000,-11436.42475991,0.00030056,2]
[426550748,1782581450000,-1034.56316857,0.00029968,2]
[426550782,1782581450000,-263.0,0.00031648,30]
[426550766,1782581450000,-161.0,0.00030648,30]
[426550788,1782581450000,-295.92,0.0003172,3]
[426550819,1782581450000,-1034.56316857,0.00032927,2]
[426550824,1782581450000,-175.20385542,0.00033,2]
[426550818,1782581450000,-282.89,0.0003273,3]
[426550825,1782581450000,-289.05898315,0.00033,2]
[426550827,1782581450000,-2000.0,0.00033,7]
[426550829,1782581450000,-11667.0,0.00033021,10]
[426550831,1782581450000,-9161.0,0.0003307,5]
[426550828,1782581450000,-8966.0,0.00033007,5]
[426550833,1782581450000,-459.0,0.00033257,7]
[426550830,1782581450000,-8936.0,0.00033027,5]
[426550832,1782581450000,-299.23095245,0.00033189,6]
[426550836,1782581450000,-513.66493967,0.00033538,2]
[426550839,1782581450000,-495.08307749,0.00033538,2]
[426550835,1782581450000,-300.0,0.00033538,2]
[426550838,1782581450000,-300.0,0.00033538,2]
[426550837,1782581450000,-584.34311185,0.00033538,2]
[426550841,1782581450000,-729.84002325,0.00033538,2]
[426550840,1782581450000,-607.49404731,0.00033538,2]
[426550842,1782581450000,-303.21732952,0.00033538,2]
[426550843,1782581450000,-300.0,0.00033538,2]
[426550844,1782581450000,-345.56049828,0.00033538,2]
[426550847,1782581450000,-1806.56266267,0.00033538,2]
[426550849,1782581450000,-311.09987874,0.00033538,2]
[426550845,1782581450000,-300.0,0.00033538,2]
[426550848,1782581450000,-588.23236035,0.00033538,2]
[426550846,1782581450000,-953.92087478,0.00033538,2]
[426550786,1782581450000,-164.0,0.00031649,30]
[426550826,1782581450000,-200.0,0.00033,2]
[426550820,1782581450000,-8904.0,0.00032943,5]
[426550834,1782581450000,-200.0,0.0003333,2]
[426550817,1782581450000,-160.0,0.00032661,30]
[426550791,1782581450000,-150221.47883112,0.00032,3]
[426550821,1782581450000,-605.42,0.0003296,30]
[426550790,1782581450000,-306.0,0.00031978,7]
[426550789,1782581450000,-1034.56316857,0.00031941,2]
[426550793,1782581450000,-624.14,0.00032,7]
[426550794,1782581450000,-721.46,0.00032,30]
[426550797,1782581450000,-9113.0,0.00032007,5]
[426550787,1782581450000,-153.0,0.00031661,30]
[426550792,1782581450000,-216.51184279,0.00032,7]
[426550795,1782581450000,-911.15,0.00032,7]
[426550798,1782581450000,-299.23095246,0.00032077,5]
[426550799,1782581450000,-3441.9886494,0.00032177,2]
[426550801,1782581450000,-68354.1759551,0.00032177,2]
[426550809,1782581450000,-350.0,0.00032425,24]
[426550796,1782581450000,-8828.0,0.00032007,5]
[426550813,1782581450000,-263.0,0.00032648,30]
[426550800,1782581450000,-85643.2189154,0.00032177,2]
[426550802,1782581450000,-677.357619,0.00032177,2]
[426550812,1782581450000,-156.0,0.00032648,30]
[426550808,1782581450000,-8927.0,0.0003223,5]
[426550815,1782581450000,-161.0,0.00032648,30]
[426550803,1782581450000,-4097.1517243,0.00032177,2]
[426550804,1782581450000,-28293.2744717,0.00032177,2]
[426550806,1782581450000,-563.0,0.0003223,5]
[426550814,1782581450000,-173.0,0.00032648,30]
[426550816,1782581450000,-162.0,0.00032649,30]
[426550822,1782581450000,-883.81,0.0003296,30]
[426550811,1782581450000,-8846.0,0.00032547,5]
[426550823,1782581450000,-189.65449257,0.00033,30]
[426550871,1782581451000,-568.78669375,0.00033575,2]
[426550869,1782581451000,-151.0,0.00033558,14]
[426550878,1782581451000,-300.0,0.00033575,2]
[426550866,1782581451000,-306.88407502,0.00033538,2]
[426550870,1782581451000,-345.56049827,0.00033575,2]
[426550872,1782581451000,-454.07889135,0.00033575,2]
[426550879,1782581451000,-300.0,0.00033575,2]
[426550877,1782581451000,-300.0,0.00033575,2]
[426550875,1782581451000,-300.0,0.00033575,2]
[426550876,1782581451000,-300.0,0.00033575,2]
[426550873,1782581451000,-510.92345041,0.00033575,2]
[426550868,1782581451000,-445.83627763,0.00033538,2]
[426550874,1782581451000,-529.43442734,0.00033575,2]
[426550865,1782581451000,-300.0,0.00033538,2]
[426550852,1782581451000,-584.88332166,0.00033538,2]
[426550864,1782581451000,-597.15298324,0.00033538,2]
[426550858,1782581451000,-300.08436755,0.00033538,2]
[426550861,1782581451000,-321.0454673,0.00033538,2]
[426550859,1782581451000,-300.1687351,0.00033538,2]
[426550853,1782581451000,-446.43445445,0.00033538,2]
[426550854,1782581451000,-300.16872689,0.00033538,2]
[426550862,1782581451000,-596.94910817,0.00033538,2]
[426550857,1782581451000,-301.98780702,0.00033538,2]
[426550856,1782581451000,-303.25778654,0.00033538,2]
[426550860,1782581451000,-345.39990021,0.00033538,2]
[426550863,1782581451000,-302.02088146,0.00033538,2]
[426550850,1782581451000,-300.1687269,0.00033538,2]
[426550851,1782581451000,-513.70275548,0.00033538,2]
[426550880,1782581451000,-300.0,0.00033575,2]
[426550855,1782581451000,-607.54605794,0.00033538,2]
[426550881,1782581451000,-300.0,0.00033575,2]
[426550867,1782581451000,-300.08436755,0.00033538,2]
[426550888,1782581451000,-162.0,0.00033649,30]
[426550913,1782581451000,-3122.1999372,0.00034397,4]
[426550910,1782581451000,-299.23095245,0.000343,8]
[426550911,1782581451000,-200.0,0.0003434,2]
[426550908,1782581451000,-741.88997746,0.000343,2]
[426550909,1782581451000,-408.83657823,0.000343,2]
[426550907,1782581451000,-500.0,0.00034298,2]
[426550906,1782581451000,-150.0,0.00034291,20]
[426550904,1782581451000,-229.68103113,0.00034,2]
[426550905,1782581451000,-200.0,0.00034,2]
[426550903,1782581451000,-586.69,0.0003392,30]
[426550912,1782581451000,-6870.18487811,0.00034397,4]
[426550901,1782581451000,-600.0,0.000339,12]
[426550902,1782581451000,-1034.56316857,0.00033914,2]
[426550886,1782581451000,-173.0,0.00033648,30]
[426550895,1782581451000,-400.0,0.000338,12]
[426550900,1782581451000,-1700.0,0.000339,12]
[426550899,1782581451000,-237.3,0.000339,120]
[426550884,1782581451000,-156.0,0.00033648,30]
[426550883,1782581451000,-250.0,0.00033582,7]
[426550885,1782581451000,-263.0,0.00033648,30]
[426550882,1782581451000,-300.0,0.00033575,2]
[426550890,1782581451000,-216.51184279,0.000337,30]
[426550889,1782581451000,-200.0,0.00033663,2]
[426550887,1782581451000,-161.0,0.00033648,30]
[426550894,1782581451000,-1100.0,0.000338,12]
[426550893,1782581451000,-381.36,0.00033731,3]
[426550896,1782581451000,-5554.43514228,0.00033817,2]
[426550897,1782581451000,-4057.10182715,0.00033851,2]
[426550898,1782581451000,-356.14,0.000339,120]
[426550891,1782581451000,-500.0,0.000337,12]
[426550892,1782581451000,-5527.0,0.000337,5]
[426550914,1782581468000,1390.695742,7.945e-05,2]
[426550916,1782581502000,276.74,0.00030538,120]
[426550918,1782581715000,500.0,0.00037299,120]
[426550919,1782581716000,500.0,0.00037299,120]
[426550920,1782581716000,500.0,0.00037299,120]
[426550921,1782581716000,500.0,0.00037299,120]
[426550925,1782581717000,291.86374041,0.00037299,120]
[426550924,1782581717000,500.0,0.00037299,120]
[426550923,1782581717000,500.0,0.00037299,120]
[426550922,1782581717000,500.0,0.00037299,120]
[426550929,1782582008000,154.08720675,0.00037297,120]
[426550930,1782582143000,2579.0,0.00037297,120]
[426550931,1782582151000,2500.0,0.00037297,120]
[426550932,1782582369000,16486.29288276,0.00037297,120]
[426550933,1782582391000,500.0,0.00030079,120]
[426550935,1782582408000,-102.50577941,0.00014125,2]
[426550934,1782582408000,-250.0,0.00014,2]
[426550936,1782582559000,-197.49422059,0.00014125,2]
[426550937,1782582559000,-600.0,0.00014187,2]
[426550938,1782582559000,-600.0,0.00014323,2]
[426550939,1782582559000,-600.0,0.00014323,2]
[426550941,1782582559000,-1223.94594807,0.00014408,2]
[426550940,1782582559000,-300.0,0.00014331,2]
[426550966,1782582631000,-300.0,0.000154,2]
[426550965,1782582631000,-600.0,0.00014887,2]
[426550962,1782582631000,-500.0,0.00014599,2]
[426550960,1782582631000,-500.0,0.00014599,2]
[426550958,1782582631000,-830.57,0.00014599,2]
[426550954,1782582631000,-500.0,0.00014499,2]
[426550953,1782582631000,-236.04928457,0.00014499,2]
[426550947,1782582631000,-2496.34926,0.000144,2]
[426550951,1782582631000,-2500.0,0.000144,2]
[426550956,1782582631000,-830.57,0.00014599,2]
[426550955,1782582631000,-293.5594825,0.00014499,2]
[426550952,1782582631000,-600.0,0.0001445,2]
[426550949,1782582631000,-13428.52519351,0.000144,2]
[426550948,1782582631000,-14646.00338415,0.000144,2]
[426550969,1782582631000,-300.0,0.000154,2]
[426550950,1782582631000,-57459.31436234,0.000144,2]
[426550976,1782582631000,-1418.95220355,0.000166,2]
[426550982,1782582631000,-151.0,0.00017321,2]
[426550973,1782582631000,-600.0,0.0001584,2]
[426550970,1782582631000,-600.0,0.00015537,2]
[426550986,1782582631000,-350.0,0.00018,2]
[426550981,1782582631000,-151.0,0.00017321,2]
[426550987,1782582631000,-1418.95220355,0.00018,2]
[426550979,1782582631000,-1418.95220355,0.000171,2]
[426550980,1782582631000,-1418.95220355,0.000173,2]
[426550983,1782582631000,-1418.95220355,0.000175,2]
[426550985,1782582631000,-1418.95220355,0.000178,2]
[426550984,1782582631000,-1418.95220355,0.000177,2]
[426550988,1782582631000,-150.0,0.0002395,2]
[426550978,1782582631000,-1418.95220355,0.00017,2]
[426550974,1782582631000,-300.0,0.00016,2]
[426550972,1782582631000,-2410.95052561,0.00015537,2]
[426550975,1782582631000,-1418.95220355,0.000165,2]
[426550977,1782582631000,-1418.95220355,0.000168,2]
[426550971,1782582631000,-600.0,0.00015537,2]
[426551030,1782582632000,-947.27231688,0.00026238,2]
[426551032,1782582632000,-168.84503051,0.00026338,2]
[426551040,1782582632000,-427.65184649,0.00026339,2]
[426551042,1782582632000,-432.65478369,0.00026339,2]
[426551028,1782582632000,-150.0,0.00026108,5]
[426551023,1782582632000,-152.67848296,0.00025779,2]
[426551026,1782582632000,-5000.0,0.00025948,2]
[426551029,1782582632000,-2676.07917321,0.00026222,2]
[426551022,1782582632000,-158.06647286,0.00025779,2]
[426551025,1782582632000,-206.9195116,0.00025781,2]
[426551021,1782582632000,-156.00253215,0.00025779,2]
[426551031,1782582632000,-370.30360843,0.00026338,2]
[426551027,1782582632000,-2676.07917321,0.00026,2]
[426551033,1782582632000,-165.18028833,0.00026338,2]
[426551054,1782582632000,-2676.07917321,0.00026889,2]
[426551038,1782582632000,-334.92693552,0.00026339,2]
[426551037,1782582632000,-160.64664018,0.00026339,2]
[426551039,1782582632000,-306.19413455,0.00026339,2]
[426551035,1782582632000,-419.01644666,0.00026338,2]
[426551036,1782582632000,-235.03961747,0.00026338,2]
[426551043,1782582632000,-316.99921508,0.00026339,2]
[426551044,1782582632000,-153.94404055,0.00026339,2]
[426551053,1782582632000,-2676.07917321,0.00026667,2]
[426551056,1782582632000,-2676.07917321,0.00027111,2]
[426551052,1782582632000,-2676.07917321,0.00026444,2]
[426551051,1782582632000,-413.8390232,0.0002634,2]
[426551046,1782582632000,-418.73108699,0.0002634,2]
[426551045,1782582632000,-316.13294573,0.00026339,2]
[426551018,1782582632000,-158.57,0.00025711,7]
[426551034,1782582632000,-152.80855906,0.00026338,2]
[426551024,1782582632000,-209.3655435,0.00025781,2]
[426551041,1782582632000,-352.59303342,0.00026339,2]
[426551020,1782582632000,-158.49960754,0.00025779,2]
[426551048,1782582632000,-189.53429303,0.0002634,2]
[426550989,1782582632000,-4891.06,0.00024174,2]
[426550990,1782582632000,-174.49,0.00024658,2]
[426550996,1782582632000,-202.36322442,0.00024658,2]
[426550995,1782582632000,-151.0,0.00024658,2]
[426550991,1782582632000,-1000.0,0.00024658,2]
[426550994,1782582632000,-152.0,0.00024658,2]
[426550993,1782582632000,-158.57,0.00024658,2]
[426550992,1782582632000,-158.81,0.00024658,2]
[426550998,1782582632000,-399.0,0.00024661,2]
[426550999,1782582632000,-411.0,0.00024668,2]
[426550997,1782582632000,-406.0,0.00024659,2]
[426551002,1782582632000,-407.0,0.00024726,2]
[426551000,1782582632000,-402.0,0.00024684,2]
[426551019,1782582632000,-153.09706728,0.00025779,2]
[426551001,1782582632000,-500.0,0.00024685,2]
[426551005,1782582632000,-400.0,0.00024904,2]
[426551016,1782582632000,-150.56,0.00025619,2]
[426551015,1782582632000,-150.758,0.00025582,2]
[426551003,1782582632000,-403.0,0.00024753,2]
[426551014,1782582632000,-6078.015,0.00025582,2]
[426551009,1782582632000,-1230.0,0.00025582,2]
[426551010,1782582632000,-150.0,0.00025582,2]
[426551012,1782582632000,-210.068,0.00025582,2]
[426551011,1782582632000,-250.0,0.00025582,2]
[426551013,1782582632000,-221.0,0.00025582,2]
[426551006,1782582632000,-152.0,0.00025055,2]
[426551007,1782582632000,-1361.0,0.00025582,2]
[426551008,1782582632000,-282.0,0.00025582,2]
[426551017,1782582632000,-158.81,0.00025711,7]
[426551004,1782582632000,-216.51184279,0.00024784,2]
[426551049,1782582632000,-345.95320025,0.0002634,2]
[426551055,1782582632000,-200.0,0.00027076,2]
[426551050,1782582632000,-263.7930925,0.0002634,2]
[426551088,1782582632000,-549.01842845,0.00029741,2]
[426551084,1782582632000,-947.2723168,0.00029125,2]
[426551090,1782582632000,-549.01842845,0.00029953,2]
[426551094,1782582632000,-7618.0,0.0003008,20]
[426551089,1782582632000,-549.01842845,0.00029927,2]
[426551093,1782582632000,-9999.98,0.0003,2]
[426551092,1782582632000,-14999.98,0.0003,2]
[426551091,1782582632000,-10401.88,0.0003,2]
[426551097,1782582632000,-549.01842845,0.00030101,2]
[426551101,1782582632000,-1500.0,0.00030164,2]
[426551108,1782582632000,-152.90036963,0.00030712,2]
[426551100,1782582632000,-1500.0,0.00030164,2]
[426551109,1782582632000,-500.0,0.00030767,2]
[426551099,1782582632000,-152.90036963,0.00030164,2]
[426551086,1782582632000,-161.0,0.00029648,30]
[426551098,1782582632000,-232.89460966,0.00030136,7]
[426551103,1782582632000,-152.90036963,0.00030438,2]
[426551104,1782582632000,-1303.196,0.00030584,26]
[426551105,1782582632000,-151.266,0.00030584,26]
[426551106,1782582632000,-161.0,0.00030648,30]
[426551111,1782582632000,-1000.0,0.00031,7]
[426551110,1782582632000,-152.90036963,0.00030986,2]
[426551113,1782582632000,-947.2723168,0.0003105,2]
[426551112,1782582632000,-7618.0,0.0003104,20]
[426551114,1782582632000,-152.90036963,0.0003126,2]
[426551120,1782582632000,-277.13,0.00031703,3]
[426551115,1782582632000,-323.0,0.000315,7]
[426551119,1782582632000,-161.0,0.00031648,30]
[426551116,1782582632000,-200.0,0.00031526,2]
[426551047,1782582632000,-238.30624241,0.0002634,2]
[426551102,1782582632000,-549.01842845,0.00030434,2]
[426551087,1782582632000,-160.0,0.00029648,30]
[426551107,1782582632000,-496.87235856,0.00030651,2]
[426551095,1782582632000,-947.2723168,0.00030088,2]
[426551085,1782582632000,-549.01842845,0.00029354,2]
[426551058,1782582632000,-500.0,0.00027178,2]
[426551057,1782582632000,-153.6036747,0.00027123,2]
[426551068,1782582632000,-500.0,0.000275,7]
[426551117,1782582632000,-152.90036963,0.00031534,2]
[426551070,1782582632000,-2676.07917321,0.00027778,2]
[426551064,1782582632000,-1500.0,0.00027397,2]
[426551060,1782582632000,-2676.07917321,0.00027333,2]
[426551065,1782582632000,-300.0,0.00027397,2]
[426551067,1782582632000,-283.40817957,0.00027397,2]
[426551059,1782582632000,-947.2723168,0.000272,2]
[426551063,1782582632000,-168.52,0.00027397,2]
[426551069,1782582632000,-2676.07917321,0.00027556,2]
[426551061,1782582632000,-1584.60324267,0.00027367,2]
[426551062,1782582632000,-150.0,0.00027397,2]
[426551066,1782582632000,-2486.91,0.00027397,10]
[426551071,1782582632000,-218.5253988,0.000279,2]
[426551096,1782582632000,-201.224572,0.000301,10]
[426551073,1782582632000,-2676.07917321,0.00028,2]
[426551080,1782582632000,-162.0,0.00028648,30]
[426551078,1782582632000,-153.0,0.00028648,30]
[426551081,1782582632000,-154.17496116,0.00028648,30]
[426551079,1782582632000,-166.0,0.00028648,30]
[426551077,1782582632000,-161.0,0.00028648,30]
[426551076,1782582632000,-156.0,0.00028648,30]
[426551082,1782582632000,-323.0,0.00029,7]
[426551072,1782582632000,-830.57,0.00027999,7]
[426551075,1782582632000,-538.96439832,0.00028573,2]
[426551074,1782582632000,-947.2723168,0.00028163,2]
[426551118,1782582632000,-547.55947013,0.00031611,2]
[426551083,1782582632000,-7618.0,0.0002912,20]
[426551122,1782582633000,-152.90036968,0.00031808,2]
[426551121,1782582633000,-194.68,0.00031785,30]
[426551123,1782582633000,-7618.0,0.00032,20]
[426551124,1782582633000,-2484.42875529,0.00032,120]
[426551128,1782582633000,-152.0,0.0003253,7]
[426551125,1782582633000,-947.2723168,0.00032013,2]
[426551126,1782582633000,-830.57,0.00032176,7]
[426551127,1782582633000,-3931.90692016,0.00032177,2]
[426551132,1782582633000,-514.24462854,0.00032675,2]
[426551133,1782582633000,-266.35,0.00032714,3]
[426551135,1782582633000,-7618.0,0.0003296,20]
[426551134,1782582633000,-500.0,0.00032877,2]
[426551129,1782582633000,-161.80418275,0.0003253,7]
[426551141,1782582633000,-300.0,0.00033575,2]
[426551131,1782582633000,-456.0,0.00032675,5]
[426551130,1782582633000,-161.0,0.00032648,30]
[426551145,1782582633000,-10379.5593444,0.00033688,2]
[426551144,1782582633000,-500.0,0.00033687,120]
[426551142,1782582633000,-172.0,0.00033648,30]
[426551140,1782582633000,-300.0,0.00033575,2]
[426551143,1782582633000,-251.0,0.00033661,7]
[426551138,1782582633000,-3958.0,0.00033568,10]
[426551139,1782582633000,-250.0,0.00033569,7]
[426551137,1782582633000,-947.2723168,0.00032975,2]
[426551147,1782582633000,-228924.09572181,0.00033688,2]
[426551146,1782582633000,-2875.9115403,0.00033688,2]
[426551136,1782582633000,-160.0,0.00032973,2]
[426551155,1782582637000,-48466.28414845,0.00033688,2]
[426551161,1782582637000,-1100.0,0.000338,12]
[426551160,1782582637000,-1100.0,0.000337,12]
[426551158,1782582637000,-14655.3380229,0.00033688,2]
[426551156,1782582637000,-18362.1601027,0.00033688,2]
[426551157,1782582637000,-171.3665242,0.00033688,2]
[426551151,1782582637000,-935.0,0.00028582,2]
[426551153,1782582637000,-2369.28040772,0.00033018,2]
[426551154,1782582637000,-15178.73090334,0.00033688,2]
[426551150,1782582637000,-935.0,0.00025582,2]
[426551152,1782582637000,-11467.29623418,0.00033018,2]
[426551159,1782582637000,-500.0,0.000337,12]
[426551172,1782582637000,-151.0,0.0003434,2]
[426551166,1782582637000,-947.2723168,0.00033938,2]
[426551173,1782582637000,-156.33326118,0.0003439,2]
[426551169,1782582637000,-500.0,0.00034297,2]
[426551171,1782582637000,-272.55771882,0.000343,2]
[426551174,1782582637000,-19145.98224947,0.00034397,4]
[426551170,1782582637000,-744.88539743,0.000343,2]
[426551167,1782582637000,-151.0,0.00034018,2]
[426551165,1782582637000,-7618.0,0.0003392,20]
[426551163,1782582637000,-1700.0,0.000339,12]
[426551162,1782582637000,-2300.0,0.000338,12]
[426551164,1782582637000,-3500.0,0.000339,12]
[426551168,1782582637000,-350.0,0.00034082,34]
[426551179,1782582638000,-1800.9595538,0.00034397,4]
[426551177,1782582638000,-603.86369019,0.00034397,4]
[426551175,1782582638000,-4164.66179603,0.00034397,4]
[426551201,1782582639000,-270.0,0.00032714,3]
[426551200,1782582639000,-281.36,0.00031703,3]
[426551202,1782582639000,-5735.27729314,0.00033588,2]
[426551203,1782582639000,-2072.43,0.0003369,10]
[426551206,1782582639000,-151.0,0.00034397,14]
[426551207,1782582639000,-200.0,0.00034397,2]
[426551208,1782582639000,-830.57,0.00034399,7]
[426551205,1782582639000,-10839.67218679,0.00034397,4]
[426551211,1782582639000,-830.57,0.00034399,7]
[426551214,1782582639000,-651.0,0.000344,5]
[426551215,1782582639000,-4133.63871616,0.000344,25]
[426551213,1782582639000,-564.92195808,0.00034399,120]
[426551204,1782582639000,-199.40771083,0.0003439,2]
[426551209,1782582639000,-830.57,0.00034399,7]
[426551212,1782582639000,-830.57,0.00034399,7]
[426551210,1782582639000,-830.57,0.00034399,7]
[426551217,1782582640000,-2000.50830033,0.000344,25]
[426551216,1782582640000,-648.71211241,0.000344,25]
[426551218,1782582640000,-1285.64047118,0.000344,25]
[426551227,1782582642000,-3898.776,0.000344,14]
[426551228,1782582642000,-91350.58949882,0.000344,14]
[426551226,1782582642000,-255972.99399569,0.000344,14]
[426551223,1782582642000,-1273.53231524,0.000344,25]
[426551224,1782582642000,-10541.5388,0.000344,25]
[426551222,1782582642000,-499.74473986,0.000344,25]
[426551221,1782582642000,-563.22624147,0.000344,25]
[426551225,1782582642000,-152273.98481512,0.000344,25]
[426551230,1782582646000,-5735.27729308,0.00033734,2]
[426551232,1782582646000,-17815.70133678,0.000344,14]
[426551233,1782582646000,-291401.80620534,0.000344,14]
[426551234,1782582646000,-297.39085973,0.000344,14]
[426551235,1782582646000,-52022.04008023,0.000344,14]
[426551231,1782582646000,-8937.0,0.00033911,5]
[426551236,1782582716000,-158.51,0.00025711,7]
[426551237,1782582769000,-539.34,0.00014499,2]
[426551238,1782582769000,555.54,0.00037298,120]
[426551240,1782582769000,555.54,0.00037298,120]
[426551239,1782582769000,555.54,0.00037298,120]
[426551243,1782582769000,555.54,0.00037298,120]
[426551242,1782582769000,555.54,0.00037298,120]
[426551245,1782582769000,555.54,0.00037298,120]
[426551244,1782582769000,555.54,0.00037298,120]
[426551241,1782582769000,555.54,0.00037298,120]
[426551250,1782582770000,555.54,0.00037298,120]
[426551249,1782582770000,555.54,0.00037298,120]
[426551248,1782582770000,555.54,0.00037298,120]
[426551247,1782582770000,555.54,0.00037298,120]
[426551246,1782582770000,555.54,0.00037298,120]
[426551252,1782582771000,555.54,0.00037298,120]
[426551251,1782582771000,555.54,0.00037298,120]
[426551254,1782582771000,555.54,0.00037298,120]
[426551253,1782582771000,555.54,0.00037298,120]
[426551257,1782582772000,555.54,0.00037298,120]
[426551256,1782582772000,555.54,0.00037298,120]
[426551255,1782582772000,555.54,0.00037298,120]
[426551260,1782582773000,555.54,0.00037298,120]
[426551259,1782582773000,555.54,0.00037298,120]
[426551258,1782582773000,555.54,0.00037298,120]
[426551261,1782582774000,555.58,0.00037298,120]
[426551262,1782582822000,-150.0,0.00014644,2]
[426551263,1782582859000,160.02,0.00028213,120]
[426551264,1782582876000,-150.0,0.00014789,2]
[426551266,1782582929000,-150.0,0.00014934,2]
[426551267,1782582982000,-500.0,0.00014499,2]
[426551269,1782583035000,-603.86369019,0.000145,2]
[426551270,1782583047000,-603.86369019,0.000145,2]
[426551276,1782583060000,1100.86660346,0.0001,2]
[426551275,1782583060000,-364.08596154,0.000145,2]
[426551278,1782583113000,-158.51,0.00014521,2]
[426551291,1782583462000,-165.47094121,0.00014663,2]
[426551303,1782583755000,-150.0,0.00014742,2]
[426551302,1782583755000,-150.0,0.00014742,2]
[426551307,1782583755000,-177.960468,0.0001484,2]
[426551305,1782583755000,-600.0,0.00014742,2]
[426551306,1782583755000,-600.0,0.00014791,2]
[426551304,1782583755000,-152.0,0.00014742,2]
[426551318,1782583831000,-150.0,0.00014742,2]
[426551319,1782583831000,-150.0,0.00014742,2]
[426551320,1782583831000,-150.0,0.00014744,2]
[426551323,1782583831000,-152.0,0.00014751,2]
[426551322,1782583831000,-458.13197116,0.00014746,2]
[426551324,1782583831000,-151.0,0.00014778,2]
[426551325,1782583831000,-422.039532,0.0001484,2]
[426551326,1782583831000,-150.0,0.00014896,2]
[426551329,1782583831000,-314.69518012,0.000149,2]
[426551327,1782583831000,-345.33609222,0.000149,2]
[426551321,1782583831000,-141.86802884,0.00014746,2]
[426551330,1782583831000,-8853.25935239,0.000149,2]
[426551328,1782583831000,-467.88347527,0.000149,2]
[426551340,1782583831000,-487.38503545,0.00015,2]
[426551339,1782583831000,-287.06431718,0.00015,2]